fUSD/lending_fUSD_20240318
["ID","MTS","AMOUNT","RATE_DAILY","PERIOD"]
[319485805,1710800011562,-584.72,0.00026027,2]
[319485806,1710800011571,-2831.64,0.00026027,2]
[319485807,1710800011581,-1349.99,0.00026027,2]
[319485808,1710800011590,-1580.15,0.00026027,2]
[319485809,1710800011600,-1466.21,0.00026027,2]
[319485810,1710800011610,-500.0,0.00026027,2]
[319485811,1710800011620,-1118.72,0.00026027,2]
[319485812,1710800011629,-606.91,0.00026027,2]
[319485813,1710800011638,-500.0,0.00026027,2]
[319485814,1710800011649,-1958.41,0.00026027,2]
[319485815,1710800011658,-605.4,0.00026027,2]
[319485816,1710800011667,-500.0,0.00026027,2]
[319485817,1710800011678,-308.156057,0.00026027,2]
[319485818,1710800011687,-500.0,0.00026027,2]
[319485819,1710800011696,-942.42,0.00026027,2]
[319485820,1710800011705,-569.15,0.00026027,2]
[319485821,1710800011714,-500.0,0.00026027,2]
[319485822,1710800011723,-1400.41,0.00026027,2]
[319485823,1710800011732,-941.12,0.00026027,2]
[319485824,1710800011742,-500.0,0.00026027,2]
[319485825,1710800011751,-1781.44,0.00026027,2]
[319485826,1710800011760,-500.0,0.00026027,2]
[319485827,1710800011769,-1912.95,0.00026027,2]
[319485828,1710800011777,-713.68,0.00026027,2]
[319485829,1710800011786,-1203.57,0.00026027,2]
[319485830,1710800011795,-905.72,0.00026027,2]
[319485831,1710800011804,-500.0,0.00026027,2]
[319485832,1710800011813,-284.18139343,0.00026027,2]
[319485833,1710800011822,-4393.41,0.00026027,2]
[319485834,1710800011830,-2303.75,0.00026027,2]
[319485835,1710800011839,-1144.14,0.00026027,2]
[319485836,1710800011848,-1229.49,0.00026027,2]
[319485837,1710800011856,-511.29,0.00026027,2]
[319485838,1710800011865,-1401.22,0.00026027,2]
[319485839,1710800011873,-500.0,0.00026027,2]
[319485840,1710800011882,-1432.28,0.00026027,2]
[319485841,1710800011891,-254.84425227,0.00026027,2]
[319485842,1710800011900,-516.82,0.00026027,2]
[319485843,1710800011908,-500.0,0.00026027,2]
[319485844,1710800011917,-1305.33,0.00026027,2]
[319485845,1710800011926,-678.53,0.00026027,2]
[319485846,1710800011935,-581.47,0.00026027,2]
[319485847,1710800011944,-645.66325531,0.00026027,2]
[319485848,1710800011954,-737.52,0.00026027,2]
[319485849,1710800011963,-1022.21,0.00026027,2]
[319485850,1710800011972,-1654.91,0.00026027,2]
[319485851,1710800011981,-745.31,0.00026027,2]
[319485852,1710800011990,-7202.93,0.00026027,2]
[319485853,1710800011999,-2992.02,0.00026027,2]
[319485854,1710800012008,-20689.66,0.00026027,2]
[319485855,1710800012018,-500.0,0.00026027,2]
[319485856,1710800012027,-638.22,0.00026027,2]
[319485857,1710800012036,-1088.66,0.00026027,2]
[319485858,1710800012044,-1110.24,0.00026027,2]
[319485859,1710800012053,-1157.8,0.00026027,2]
[319485860,1710800012062,-1090.38,0.00026027,2]
[319485861,1710800012072,-1367.92,0.00026027,2]
[319485862,1710800012081,-500.0,0.00026027,2]
[319485863,1710800012090,-1716.46,0.00026027,2]
[319485864,1710800012099,-1412.21,0.00026027,2]
[319485865,1710800012108,-605.07,0.00026027,2]
[319485866,1710800012117,-622.92,0.00026027,2]
[319485867,1710800012126,-8212.3,0.00026027,2]
[319485868,1710800012135,-738.47,0.00026027,2]
[319485869,1710800012143,-6843.13,0.00026027,2]
[319485870,1710800012152,-2375.9,0.00026027,2]
[319485871,1710800012162,-1814.94,0.00026027,2]
[319485872,1710800012171,-720.26,0.00026027,2]
[319485873,1710800012180,-642.05,0.00026027,2]
[319485874,1710800012189,-500.0,0.00026027,2]
[319485875,1710800012199,-7701.15,0.00026027,2]
[319485876,1710800012208,-2621.03,0.00026027,2]
[319485877,1710800012217,-867.51,0.00026027,2]
[319485878,1710800012226,-70618.05,0.00026027,2]
[319485879,1710800012237,-1283.55,0.00026027,2]
[319485880,1710800012246,-933.88,0.00026027,2]
[319485881,1710800012255,-651.4,0.00026027,2]
[319485882,1710800012264,-1968.24,0.00026027,2]
[319485883,1710800012273,-1507.28,0.00026027,2]
[319485884,1710800012282,-15625.12,0.00026027,2]
[319485885,1710800012291,-500.0,0.00026027,2]
[319485886,1710800012300,-2930.24,0.00026027,2]
[319485887,1710800012309,-908.19,0.00026027,2]
[319485888,1710800012318,-836.99,0.00026027,2]
[319485889,1710800012327,-1649.1,0.00026027,2]
[319485890,1710800012336,-386.07,0.00026027,2]
[319485891,1710800012345,-1000.59,0.00026027,2]
[319485892,1710800012355,-3638.93,0.00026027,2]
[319485893,1710800012364,-500.0,0.00026027,2]
[319485894,1710800012373,-2240.25,0.00026027,2]
[319485895,1710800012382,-500.0,0.00026027,2]
[319485896,1710800012392,-1827.91,0.00026027,2]
[319485897,1710800012401,-876.56,0.00026027,2]
[319485898,1710800012410,-4659.24,0.00026027,2]
[319485899,1710800012422,-500.0,0.00026027,2]
[319485900,1710800012432,-2226.67,0.00026027,2]
[319485901,1710800012441,-500.0,0.00026027,2]
[319485902,1710800012450,-500.0,0.00026027,2]
[319485903,1710800012460,-3729.26,0.00026027,2]
[319485904,1710800012469,-500.0,0.00026027,2]
[319485905,1710800012478,-3606.56,0.00026027,2]
[319485906,1710800012488,-1207.02,0.00026027,2]
[319485907,1710800012497,-963.32,0.00026027,2]
[319485908,1710800012507,-28470.72,0.00026027,2]
[319485909,1710800012516,-2980.27,0.00026027,2]
[319485910,1710800012525,-1000.56,0.00026027,2]
[319485911,1710800012534,-500.0,0.00026027,2]
[319485912,1710800012543,-500.0,0.00026027,2]
[319485913,1710800012553,-1014.54,0.00026027,2]
[319485914,1710800012562,-1007.55,0.00026027,2]
[319485915,1710800012571,-500.0,0.00026027,2]
[319485916,1710800012581,-12991.16,0.00026027,2]
[319485917,1710800012590,-825.64,0.00026027,2]
[319485918,1710800012600,-1967.21,0.00026027,2]
[319485919,1710800012611,-500.0,0.00026027,2]
[319485920,1710800012620,-500.0,0.00026027,2]
[319485921,1710800012629,-989.42,0.00026027,2]
[319485922,1710800012639,-3061.78,0.00026027,2]
[319485923,1710800012648,-3350.06,0.00026027,2]
[319485924,1710800012658,-1418.83,0.00026027,2]
[319485925,1710800012667,-578.72,0.00026027,2]
[319485926,1710800012676,-500.0,0.00026027,2]
[319485927,1710800012686,-1283.92,0.00026027,2]
[319485928,1710800012695,-1017.47,0.00026027,2]
[319485929,1710800012703,-793.34,0.00026027,2]
[319485930,1710800012712,-500.0,0.00026027,2]
[319485931,1710800012723,-544.38,0.00026027,2]
[319485932,1710800012732,-1383.54,0.00026027,2]
[319485933,1710800012741,-3058.85,0.00026027,2]
[319485934,1710800012751,-500.0,0.00026027,2]
[319485935,1710800012760,-4863.68,0.00026027,2]
[319485936,1710800012769,-3420.67,0.00026027,2]
[319485937,1710800012779,-217.19598904,0.00026027,2]
[319485938,1710800012788,-1467.98,0.00026027,2]
[319485939,1710800012797,-500.0,0.00026027,2]
[319485940,1710800012807,-909.74,0.00026027,2]
[319485941,1710800012817,-500.0,0.00026027,2]
[319485942,1710800012826,-500.0,0.00026027,2]
[319485943,1710800012837,-616.14,0.00026027,2]
[319485944,1710800012847,-500.0,0.00026027,2]
[319485945,1710800012857,-1472.05,0.00026027,2]
[319485946,1710800012868,-1391.49,0.00026027,2]
[319485947,1710800012877,-500.0,0.00026027,2]
[319485948,1710800012886,-538.81651908,0.00026027,2]
[319485949,1710800012895,-501.4,0.00026027,2]
[319485950,1710800012903,-500.0,0.00026027,2]
[319485951,1710800012912,-1044.22,0.00026027,2]
[319485952,1710800012921,-736.5,0.00026027,2]
[319485953,1710800012930,-521.76302232,0.00026027,2]
[319485954,1710800012939,-1726.54,0.00026027,2]
[319485955,1710800012947,-1026.28,0.00026027,2]
[319485956,1710800012958,-2302.64,0.00026027,2]
[319485957,1710800012967,-1165.44,0.00026027,2]
[319485958,1710800012978,-12189.86,0.00026027,2]
[319485959,1710800012988,-1316.33,0.00026027,2]
[319485960,1710800012996,-1375.05,0.00026027,2]
[319485961,1710800013005,-515.52,0.00026027,2]
[319485962,1710800013014,-1294.68,0.00026027,2]
[319485963,1710800013023,-500.0,0.00026027,2]
[319485964,1710800013032,-1925.65,0.00026027,2]
[319485965,1710800013041,-1545.51,0.00026027,2]
[319485966,1710800013050,-728.8,0.00026027,2]
[319485967,1710800013059,-1677.75,0.00026027,2]
[319485968,1710800013068,-1530.51,0.00026027,2]
[319485969,1710800013077,-6062.83,0.00026027,2]
[319485970,1710800013086,-500.0,0.00026027,2]
[319485971,1710800013095,-630.76,0.00026027,2]
[319485972,1710800013104,-697.84,0.00026027,2]
[319485973,1710800013113,-1154.87,0.00026027,2]
[319485974,1710800013122,-1111.24,0.00026027,2]
[319485975,1710800013131,-2083.43,0.00026027,2]
[319485976,1710800013141,-500.0,0.00026027,2]
[319485977,1710800013150,-873.95,0.00026027,2]
[319485978,1710800013159,-1539.77,0.00026027,2]
[319485979,1710800013169,-572.93,0.00026027,2]
[319485980,1710800013178,-1218.6,0.00026027,2]
[319485981,1710800013187,-762.41,0.00026027,2]
[319485982,1710800013196,-805.44,0.00026027,2]
[319485983,1710800013205,-2278.77,0.00026027,2]
[319485984,1710800013215,-2011.92,0.00026027,2]
[319485985,1710800013224,-971.93,0.00026027,2]
[319485986,1710800013234,-2062.21,0.00026027,2]
[319485987,1710800013243,-768.87,0.00026027,2]
[319485988,1710800013252,-500.0,0.00026027,2]
[319485989,1710800013262,-1340.16,0.00026027,2]
[319485990,1710800013270,-1606.59,0.00026027,2]
[319485991,1710800013279,-1007.76,0.00026027,2]
[319485992,1710800013288,-4162.89,0.00026027,2]
[319485993,1710800013297,-1051.06,0.00026027,2]
[319485994,1710800013306,-699.3,0.00026027,2]
[319485995,1710800013316,-1416.75,0.00026027,2]
[319485996,1710800013325,-518.73,0.00026027,2]
[319485997,1710800013334,-1220.37,0.00026027,2]
[319485998,1710800013343,-1475.69,0.00026027,2]
[319485999,1710800013355,-500.0,0.00026027,2]
[319486000,1710800013365,-960.76,0.00026027,2]
[319486001,1710800013374,-1579.78,0.00026027,2]
[319486002,1710800013384,-598.24,0.00026027,2]
[319486003,1710800013393,-3689.48,0.00026027,2]
[319486004,1710800013402,-685.26,0.00026027,2]
[319486005,1710800013412,-1883.02,0.00026027,2]
[319486006,1710800013421,-725.93,0.00026027,2]
[319486007,1710800013431,-500.0,0.00026027,2]
[319486008,1710800013440,-582.85,0.00026027,2]
[319486009,1710800013449,-597.67,0.00026027,2]
[319486010,1710800013458,-945.24,0.00026027,2]
[319486011,1710800013467,-3264.27,0.00026027,2]
[319486012,1710800013477,-1114.59,0.00026027,2]
[319486013,1710800013488,-1101.09,0.00026027,2]
[319486014,1710800013497,-3081.47,0.00026027,2]
[319486015,1710800013506,-1090.35,0.00026027,2]
[319486016,1710800013515,-545.12,0.00026027,2]
[319486017,1710800013524,-525.35,0.00026027,2]
[319486018,1710800013533,-926.2,0.00026027,2]
[319486019,1710800013542,-738.48,0.00026027,2]
[319486020,1710800013551,-661.43,0.00026027,2]
[319486021,1710800013560,-521.01,0.00026027,2]
[319486022,1710800013569,-3873.88,0.00026027,2]
[319486023,1710800013579,-1479.1,0.00026027,2]
[319486024,1710800013588,-2791.36,0.00026027,2]
[319486025,1710800013598,-15199.29,0.00026027,2]
[319486026,1710800013609,-8062.17,0.00026027,2]
[319486027,1710800013618,-524.35,0.00026027,2]
[319486028,1710800013628,-1469.15,0.00026027,2]
[319486029,1710800013638,-1368.38,0.00026027,2]
[319486030,1710800013650,-578.84,0.00026027,2]
[319486031,1710800013659,-568.79112526,0.00026027,2]
[319486032,1710800013668,-500.0,0.00026027,2]
[319486033,1710800013678,-625.58,0.00026027,2]
[319486034,1710800013687,-500.0,0.00026027,2]
[319486035,1710800013696,-659.71,0.00026027,2]
[319486036,1710800013704,-500.0,0.00026027,2]
[319486037,1710800013713,-1165.69,0.00026027,2]
[319486038,1710800013722,-522.17,0.00026027,2]
[319486039,1710800013732,-500.0,0.00026027,2]
[319486040,1710800013741,-547.31,0.00026027,2]
[319486041,1710800013750,-500.0,0.00026027,2]
[319486042,1710800013758,-510.33188896,0.00026027,2]
[319486043,1710800013768,-1852.16,0.00026027,2]
[319486044,1710800013776,-1931.5,0.00026027,2]
[319486045,1710800013785,-5194.45,0.00026027,2]
[319486046,1710800013794,-4366.56,0.00026027,2]
[319486047,1710800013802,-2626.87,0.00026027,2]
[319486048,1710800013812,-643.53,0.00026027,2]
[319486049,1710800013821,-4566.9,0.00026027,2]
[319486050,1710800013830,-1560.19,0.00026027,2]
[319486051,1710800013839,-574.42,0.00026027,2]
[319486052,1710800013848,-7356.66,0.00026027,2]
[319486053,1710800013857,-2335.37,0.00026027,2]
[319486054,1710800013865,-1433.97,0.00026027,2]
[319486055,1710800013874,-1302.8,0.00026027,2]
[319486056,1710800013883,-12149.23,0.00026027,2]
[319486057,1710800013892,-976.06,0.00026027,2]
[319486058,1710800013901,-500.0,0.00026027,2]
[319486059,1710800013910,-596.59,0.00026027,2]
[319486060,1710800013919,-773.37,0.00026027,2]
[319486061,1710800013927,-500.0,0.00026027,2]
[319486062,1710800013936,-12163.47,0.00026027,2]
[319486063,1710800013946,-500.0,0.00026027,2]
[319486064,1710800013955,-500.0,0.00026027,2]
[319486065,1710800013964,-1040.95,0.00026027,2]
[319486066,1710800013973,-4014.74,0.00026027,2]
[319486067,1710800013983,-1666.88,0.00026027,2]
[319486068,1710800013992,-676.8,0.00026027,2]
[319486069,1710800014001,-798.37,0.00026027,2]
[319486070,1710800014010,-2937.18,0.00026027,2]
[319486071,1710800014019,-514.53,0.00026027,2]
[319486072,1710800014029,-630.18,0.00026027,2]
[319486073,1710800014040,-500.0,0.00026027,2]
[319486074,1710800014050,-4002.95,0.00026027,2]
[319486075,1710800014060,-3032.32,0.00026027,2]
[319486076,1710800014071,-500.0,0.00026027,2]
[319486077,1710800014081,-1825.34,0.00026027,2]
[319486078,1710800014091,-713.44,0.00026027,2]
[319486079,1710800014099,-2538.34,0.00026027,2]
[319486080,1710800014109,-1704.18,0.00026027,2]
[319486081,1710800014118,-2264.59,0.00026027,2]
[319486082,1710800014127,-999.91,0.00026027,2]
[319486083,1710800014135,-1092.32,0.00026027,2]
[319486084,1710800014145,-1455.99,0.00026027,2]
[319486085,1710800014155,-1138.58,0.00026027,2]
[319486086,1710800014165,-951.86,0.00026027,2]
[319486087,1710800014174,-780.67,0.00026027,2]
[319486088,1710800014183,-618.5553054,0.00026027,2]
[319486089,1710800014192,-1309.57,0.00026027,2]
[319486090,1710800014201,-500.0,0.00026027,2]
[319486091,1710800014210,-500.0,0.00026027,2]
[319486092,1710800014219,-4539.82,0.00026027,2]
[319486093,1710800014228,-4994.79,0.00026027,2]
[319486094,1710800014239,-1485.77,0.00026027,2]
[319486095,1710800014248,-7034.98,0.00026027,2]
[319486096,1710800014257,-849.91,0.00026027,2]
[319486097,1710800014267,-1794.57,0.00026027,2]
[319486098,1710800014276,-500.0,0.00026027,2]
[319486099,1710800014285,-750.9,0.00026027,2]
[319486100,1710800014297,-6038.49,0.00026027,2]
[319486101,1710800014306,-2385.09,0.00026027,2]
[319486102,1710800014316,-1615.86,0.00026027,2]
[319486103,1710800014325,-1135.58,0.00026027,2]
[319486104,1710800014335,-6456.64,0.00026027,2]
[319486105,1710800014345,-979.41,0.00026027,2]
[319486106,1710800014354,-942.12,0.00026027,2]
[319486107,1710800014364,-1504.81,0.00026027,2]
[319486108,1710800014373,-500.0,0.00026027,2]
[319486109,1710800014382,-854.48,0.00026027,2]
[319486110,1710800014392,-508.22,0.00026027,2]
[319486111,1710800014402,-662.67,0.00026027,2]
[319486112,1710800014411,-40338.6,0.00026027,2]
[319486113,1710800014421,-4121.83,0.00026027,2]
[319486114,1710800014430,-2520.23,0.00026027,2]
[319486115,1710800014440,-2157.68,0.00026027,2]
[319486116,1710800014449,-1120.6,0.00026027,2]
[319486117,1710800014459,-500.0,0.00026027,2]
[319486118,1710800014471,-2358.27,0.00026027,2]
[319486119,1710800014481,-2259.16,0.00026027,2]
[319486120,1710800014491,-1192.63,0.00026027,2]
[319486121,1710800014504,-6231.23,0.00026027,2]
[319486122,1710800014514,-500.0,0.00026027,7]
[319486123,1710800014523,-155.0,0.00026028,2]
[319486124,1710800014533,-167.82979611,0.00026029,2]
[319486125,1710800014542,-359.59,0.00026079,2]
[319486126,1710800014552,-150.0,0.00026081,2]
[319486127,1710800014562,-1000.0,0.00026098,2]
[319486128,1710800014572,-20000.0,0.000261,5]
[319486129,1710800014582,-20207.82885385,0.00026108,2]
[319486130,1710800014592,-4015.79750033,0.00026108,2]
[319486131,1710800014603,-150.0,0.00026113,4]
[319486132,1710800014613,-150.0,0.00026117,4]
[319486133,1710800014623,-151.184824,0.0002612,2]
[319486134,1710800014633,-171.714221,0.0002612,2]
[319486135,1710800014643,-180.793729,0.0002612,2]
[319486136,1710800014653,-171.769411,0.0002612,2]
[319486137,1710800014663,-161.18210781,0.00026134,2]
[319486138,1710800014673,-152.0,0.00026205,3]
[319486139,1710800014683,-150.0,0.0002624,4]
[319486140,1710800014692,-150.0,0.00026245,2]
[319486141,1710800014701,-150.0,0.0002626,4]
[319486142,1710800014711,-1000.0,0.00026264,10]
[319486143,1710800014721,-162.6041618,0.00026274,2]
[319486144,1710800014730,-70234.68356324,0.000263,2]
[319486145,1710800014740,-1010.44,0.000263,2]
[319486146,1710800014750,-754.65,0.00026301,2]
[319486147,1710800014759,-500.0,0.00026301,2]
[319486148,1710800014769,-1183.48,0.00026301,2]
[319486149,1710800014778,-841.06,0.00026301,2]
[319486150,1710800014788,-1050.21,0.00026301,2]
[319486151,1710800014798,-603.24,0.00026301,2]
[319486152,1710800014807,-864.95,0.00026301,2]
[319486153,1710800014816,-801.98,0.00026301,2]
[319486154,1710800014826,-2023.13,0.00026301,2]
[319486155,1710800014835,-2257.25,0.00026301,2]
[319486156,1710800014845,-1080.91,0.00026301,2]
[319486157,1710800014854,-794.11,0.00026301,2]
[319486158,1710800014864,-753.34,0.00026301,2]
[319486159,1710800014874,-500.0,0.00026301,2]
[319486160,1710800014883,-841.73,0.00026301,2]
[319486161,1710800014893,-637.28,0.00026301,2]
[319486162,1710800014903,-2219.16,0.00026301,2]
[319486163,1710800014912,-822.95,0.00026301,2]
[319486164,1710800014922,-532.03,0.00026301,2]
[319486165,1710800014930,-500.0,0.00026301,2]
[319486166,1710800014940,-666.77,0.00026301,2]
[319486167,1710800014950,-500.0,0.00026301,2]
[319486168,1710800014959,-2410.75,0.00026301,2]
[319486169,1710800014969,-1083.62,0.00026301,2]
[319486170,1710800014979,-1096.76,0.00026301,2]
[319486171,1710800014989,-452.05655522,0.00026301,2]
[319486172,1710800015001,-1153.52,0.00026301,2]
[319486173,1710800015010,-1579.95,0.00026301,2]
[319486174,1710800015020,-1079.02,0.00026301,2]
[319486175,1710800015030,-500.0,0.00026301,2]
[319486176,1710800015040,-500.0,0.00026301,2]
[319486177,1710800015050,-604.92,0.00026301,2]
[319486178,1710800015061,-2112.17,0.00026301,2]
[319486179,1710800015071,-788.06,0.00026301,2]
[319486180,1710800015082,-965.6,0.00026301,2]
[319486181,1710800015091,-567.24,0.00026301,2]
[319486182,1710800015102,-1057.53,0.00026301,2]
[319486183,1710800015112,-1346.77,0.00026301,2]
[319486184,1710800015121,-712.98,0.00026301,2]
[319486185,1710800015132,-624.81,0.00026301,2]
[319486186,1710800015142,-1820.6,0.00026301,2]
[319486187,1710800015152,-500.0,0.00026301,2]
[319486188,1710800015162,-750.79,0.00026301,2]
[319486189,1710800015172,-628.64,0.00026301,2]
[319486190,1710800015182,-787.89,0.00026301,2]
[319486191,1710800015193,-593.51,0.00026301,2]
[319486192,1710800015204,-750.42,0.00026301,2]
[319486193,1710800015214,-622.98,0.00026301,2]
[319486194,1710800015224,-1628.79,0.00026301,2]
[319486195,1710800015234,-165.60809477,0.00026301,2]
[319486196,1710800015244,-500.0,0.00026301,2]
[319486197,1710800015255,-3414.73,0.00026301,2]
[319486198,1710800015265,-830.73,0.00026301,2]
[319486199,1710800015275,-837.33,0.00026301,2]
[319486200,1710800015285,-1594.83,0.00026301,2]
[319486201,1710800015295,-1565.76,0.00026301,2]
[319486202,1710800015306,-2289.86,0.00026301,2]
[319486203,1710800015316,-2327.27,0.00026301,2]
[319486204,1710800015326,-1043.46,0.00026301,2]
[319486205,1710800015336,-1166.79,0.00026301,2]
[319486206,1710800015346,-549.91,0.00026301,2]
[319486207,1710800015356,-568.66,0.00026301,2]
[319486208,1710800015367,-771.19,0.00026301,2]
[319486209,1710800015377,-2753.66,0.00026301,2]
[319486210,1710800015388,-1513.08,0.00026301,2]
[319486211,1710800015398,-1842.48,0.00026301,2]
[319486212,1710800015408,-1460.74,0.00026301,2]
[319486213,1710800015418,-942.07,0.00026301,2]
[319486214,1710800015428,-895.46,0.00026301,2]
[319486215,1710800015438,-1989.79,0.00026301,2]
[319486216,1710800015448,-1990.34,0.00026301,2]
[319486217,1710800015458,-500.0,0.00026301,2]
[319486218,1710800015469,-570.11,0.00026301,2]
[319486219,1710800015478,-594.54,0.00026301,2]
[319486220,1710800015490,-500.0,0.00026301,2]
[319486221,1710800015500,-564.59140225,0.00026301,2]
[319486222,1710800015510,-2010.18,0.00026301,2]
[319486223,1710800015520,-1089.38,0.00026301,2]
[319486224,1710800015530,-1225.65,0.00026301,2]
[319486225,1710800015541,-2976.15,0.00026301,2]
[319486226,1710800015551,-705.19,0.00026301,2]
[319486227,1710800015562,-508.99,0.00026301,2]
[319486228,1710800015572,-501.15,0.00026301,2]
[319486229,1710800015582,-1173.9,0.00026301,2]
[319486230,1710800015592,-1787.1,0.00026301,2]
[319486231,1710800015605,-500.0,0.00026301,2]
[319486232,1710800015615,-1969.89,0.00026301,2]
[319486233,1710800015625,-551.56,0.00026301,2]
[319486234,1710800015636,-451.52609535,0.00026301,2]
[319486235,1710800015646,-634.39,0.00026301,2]
[319486236,1710800015656,-515.85,0.00026301,2]
[319486237,1710800015667,-1763.14,0.00026301,2]
[319486238,1710800015676,-500.0,0.00026301,2]
[319486239,1710800015687,-1610.23,0.00026301,2]
[319486240,1710800015697,-698.44,0.00026301,2]
[319486241,1710800015708,-757.78,0.00026301,2]
[319486242,1710800015718,-1107.01,0.00026301,2]
[319486243,1710800015728,-3621.53,0.00026301,2]
[319486244,1710800015739,-3272.98,0.00026301,2]
[319486245,1710800015749,-508.08268287,0.00026301,2]
[319486246,1710800015760,-500.0,0.00026301,2]
[319486247,1710800015770,-617.42,0.00026301,2]
[319486248,1710800015780,-500.0,0.00026301,2]
[319486249,1710800015790,-1059.1,0.00026301,2]
[319486250,1710800015800,-833.03,0.00026301,2]
[319486251,1710800015810,-500.0,0.00026301,2]
[319486252,1710800015820,-2995.13,0.00026301,2]
[319486253,1710800015830,-1379.17,0.00026301,2]
[319486254,1710800015840,-2205.14,0.00026301,2]
[319486255,1710800015850,-1296.97,0.00026301,2]
[319486256,1710800015859,-684.91,0.00026301,2]
[319486257,1710800015871,-1167.23,0.00026301,2]
[319486258,1710800015881,-500.0,0.00026301,2]
[319486259,1710800015892,-1111.67,0.00026301,2]
[319486260,1710800015902,-324.66495088,0.00026301,2]
[319486261,1710800015912,-1840.74,0.00026301,2]
[319486262,1710800015921,-1159.15,0.00026301,2]
[319486263,1710800015931,-1071.26,0.00026301,2]
[319486264,1710800015941,-732.2,0.00026301,2]
[319486265,1710800015951,-2487.12,0.00026301,2]
[319486266,1710800015962,-500.0,0.00026301,2]
[319486267,1710800015972,-1409.81,0.00026301,2]
[319486268,1710800015983,-2258.29,0.00026301,2]
[319486269,1710800015994,-885.61,0.00026301,2]
[319486270,1710800016004,-728.7,0.00026301,2]
[319486271,1710800016015,-981.29,0.00026301,2]
[319486272,1710800016025,-619.02,0.00026301,2]
[319486273,1710800016035,-3027.38,0.00026301,2]
[319486274,1710800016045,-2230.77,0.00026301,2]
[319486275,1710800016056,-2148.85,0.00026301,2]
[319486276,1710800016066,-847.31,0.00026301,2]
[319486277,1710800016076,-500.0,0.00026301,2]
[319486278,1710800016086,-1040.92,0.00026301,2]
[319486279,1710800016095,-1016.05,0.00026301,2]
[319486280,1710800016380,-625.78,0.00026301,2]
[319486281,1710800016393,-673.87,0.00026301,2]
[319486282,1710800016404,-1988.29,0.00026301,2]
[319486283,1710800016415,-803.43,0.00026301,2]
[319486284,1710800016425,-2712.0,0.00026301,2]
[319486285,1710800016435,-618.27,0.00026301,2]
[319486286,1710800016445,-1492.36,0.00026301,2]
[319486287,1710800016456,-925.33,0.00026301,2]
[319486288,1710800016465,-1934.24,0.00026301,2]
[319486289,1710800016475,-500.0,0.00026301,2]
[319486290,1710800016486,-1347.96,0.00026301,2]
[319486291,1710800016497,-618.35,0.00026301,2]
[319486292,1710800016508,-3249.34,0.00026301,2]
[319486293,1710800016518,-736.87,0.00026301,2]
[319486294,1710800016528,-1048.99,0.00026301,2]
[319486295,1710800016538,-695.99,0.00026301,2]
[319486296,1710800016548,-500.0,0.00026301,2]
[319486297,1710800016559,-1686.42,0.00026301,2]
[319486298,1710800016569,-500.0,0.00026301,2]
[319486299,1710800016580,-2027.85,0.00026301,2]
[319486300,1710800016590,-3300.65,0.00026301,2]
[319486301,1710800016600,-1879.8,0.00026301,2]
[319486302,1710800016612,-600.13,0.00026301,2]
[319486303,1710800016622,-689.62,0.00026301,2]
[319486304,1710800016632,-3602.93,0.00026301,2]